bitfinex/quotes_BTCUSD_20240730
["timestamp","ask_amount","ask_price","bid_price","bid_amount"]
[1722344960267,0.09051272,66878.0,66877.0,0.142]
[1722344960474,0.00083,66878.0,66877.0,0.142]
[1722344960664,0.00083,66878.0,66877.0,0.14922763]
[1722344963063,0.00083,66878.0,66877.0,0.15322763]
[1722344963239,0.00083,66878.0,66877.0,0.30275563]
[1722344963446,0.00083,66878.0,66877.0,0.15322763]
[1722344964087,0.449408,66878.0,66877.0,0.15322763]
[1722344964286,0.150356,66878.0,66877.0,0.15322763]
[1722344964529,0.150356,66878.0,66877.0,0.146]
[1722344964828,0.150356,66878.0,66877.0,0.12253354]
[1722344964829,0.449408,66878.0,66877.0,0.12253354]
[1722344965004,0.00083,66878.0,66877.0,0.12976117]
[1722344965182,0.00083,66878.0,66877.0,0.12253354]
[1722344965557,0.00083,66878.0,66877.0,0.12976117]
[1722344967143,0.150356,66878.0,66877.0,0.12976117]
[1722344967460,0.00083,66878.0,66877.0,0.12253354]
[1722344967662,0.150356,66878.0,66877.0,0.12976117]
[1722344967866,0.150356,66878.0,66877.0,0.12253354]
[1722344968106,0.150356,66878.0,66877.0,0.12976117]
[1722344968323,0.00083,66878.0,66877.0,0.12976117]
[1722344968618,0.150356,66878.0,66877.0,0.12976117]
[1722344968963,0.150356,66878.0,66877.0,0.12253354]
[1722344969585,0.150356,66878.0,66877.0,0.12976117]
[1722344970293,0.00083,66878.0,66877.0,0.12253354]
[1722344970688,0.00083,66878.0,66877.0,0.12974912]
[1722344972798,0.449408,66878.0,66877.0,0.12974912]
[1722344973300,0.150356,66878.0,66877.0,0.12253354]
[1722344973443,0.00083,66878.0,66877.0,0.12253354]
[1722344973641,0.00083,66878.0,66877.0,0.12973796]
[1722344975476,0.00083,66878.0,66877.0,0.87737796]
[1722344975700,0.00083,66878.0,66877.0,0.57832196]
[1722344978372,0.00083,66878.0,66877.0,0.12973796]
[1722344978579,0.00083,66878.0,66877.0,0.57832196]
[1722344979147,0.00083,66878.0,66877.0,0.95407796]
[1722344979936,0.00083,66878.0,66877.0,0.65502196]
[1722344980455,0.00083,66878.0,66877.0,0.65102196]
[1722344980835,0.00083,66878.0,66877.0,0.66202196]
[1722344981039,0.00083,66878.0,66877.0,0.96107796]
[1722344987070,0.00083,66878.0,66877.0,1.26013396]
[1722344987738,0.0015542,66886.0,66885.0,0.77756]
[1722344987952,0.44444115,66896.0,66895.0,0.230588]
[1722344988120,0.44444115,66896.0,66895.0,0.1578]
[1722344988335,0.0015542,66902.0,66895.0,0.23177462]
[1722344988556,0.149477,66900.0,66899.0,0.0767]
[1722344988756,0.46323701,66900.0,66899.0,0.0767]
[1722344988967,0.46323701,66900.0,66899.0,0.08416903]
[1722344989239,0.149481,66899.0,66895.0,0.1476]
[1722344989442,0.01480701,66898.0,66895.0,0.1476]
[1722344990764,0.01480701,66897.0,66895.0,0.1476]
[1722344990968,0.149479,66899.0,66895.0,0.1476]
[1722344991128,0.0150382,66898.0,66895.0,0.1476]
[1722344991332,0.23904203,66900.0,66895.0,0.1476]
[1722344991525,0.01505296,66899.0,66895.0,0.1476]
[1722344992067,0.01505296,66899.0,66895.0,0.15623375]
[1722344992300,0.149479,66899.0,66895.0,0.15623375]
[1722344992660,0.149477,66900.0,66895.0,0.15823375]
[1722344992854,0.298944,66902.0,66895.0,0.15823375]
[1722344992969,0.149471,66903.0,66895.0,0.15623375]
[1722344993352,0.38849603,66906.0,66896.0,0.149485]
[1722344993487,0.01495739,66905.0,66901.0,0.063]
[1722344993685,0.00843,66907.0,66902.0,0.0787]
[1722344993897,0.01495615,66906.0,66902.0,0.0787]
[1722344994283,0.157891,66907.0,66902.0,0.0787]
[1722344994498,0.157892,66907.0,66902.0,0.0787]
[1722344995343,0.157892,66907.0,66903.0,0.00743647]
[1722344995503,0.298927,66906.0,66903.0,0.00743647]
[1722344995703,0.298927,66906.0,66902.0,0.0787]
[1722344995704,0.149466,66905.0,66902.0,0.0787]
[1722344995934,0.157892,66907.0,66904.0,0.00743508]
[1722344996129,0.157892,66907.0,66903.0,0.00743647]
[1722344996472,0.157891,66907.0,66904.0,0.00743508]
[1722344996672,0.00843,66907.0,66902.0,0.08728311]
[1722344996890,0.157891,66907.0,66905.0,0.00743368]
[1722344997177,0.157891,66907.0,66902.0,0.08728311]
[1722344997389,0.00843,66907.0,66906.0,0.00743229]
[1722344997565,0.00843,66907.0,66902.0,0.08728311]
[1722344997566,0.157891,66907.0,66902.0,0.08728311]
[1722344997780,0.157891,66907.0,66906.0,0.00743229]
[1722344997781,0.00843,66907.0,66906.0,0.00743229]
[1722344997973,0.157891,66907.0,66902.0,0.08728311]
[1722344998176,0.157891,66907.0,66906.0,0.00743229]
[1722344998378,0.157891,66907.0,66902.0,0.08728311]
[1722344998756,0.157891,66907.0,66903.0,0.00743647]
[1722344999740,0.149463,66906.0,66903.0,0.00743647]
[1722344999973,0.149467,66904.0,66903.0,0.00743647]
[1722345000177,0.03183,66907.0,66903.0,0.00743647]
[1722345000399,0.149465,66905.0,66899.0,0.08597665]
[1722345000594,0.149464,66906.0,66904.0,0.00743508]
[1722345000814,0.149464,66906.0,66899.0,0.08597665]
[1722345001539,0.307352,66907.0,66899.0,0.08597665]
[1722345001688,0.448392,66906.0,66900.0,0.00742582]
[1722345002098,0.149469,66904.0,66900.0,0.00742582]
[1722345002337,0.0015542,66903.0,66900.0,0.00742582]
[1722345002535,0.149466,66905.0,66900.0,0.00742582]
[1722345002767,0.149464,66906.0,66900.0,0.00742582]
[1722345002918,0.149464,66906.0,66903.0,0.003]
[1722345003334,0.307353,66907.0,66899.0,0.0771]
[1722345003335,0.149465,66905.0,66904.0,0.00742023]
[1722345003713,0.39683089,66907.0,66900.0,0.004]
[1722345003714,0.0015542,66906.0,66900.0,0.004]
[1722345003919,0.149465,66905.0,66904.0,0.00742023]
[1722345004115,0.149465,66905.0,66899.0,0.0771]
[1722345004706,0.149473,66902.0,66900.0,0.00742582]
[1722345004912,0.298932,66905.0,66899.0,0.0771]
[1722345005085,0.0894843,66903.0,66892.0,0.0607]
[1722345005284,0.149496,66891.0,66890.0,0.0765]
[1722345005526,0.298988,66893.0,66890.0,0.0765]
[1722345005725,0.149493,66893.0,66890.0,0.0765]
[1722345005928,0.0015542,66892.0,66890.0,0.0765]
[1722345006053,0.1510492,66892.0,66890.0,0.0765]
[1722345006270,0.149492,66893.0,66890.0,0.0765]
[1722345006672,0.149488,66895.0,66890.0,0.05703812]
[1722345006876,0.0894843,66898.0,66891.0,0.0657]
[1722345007060,0.00150098,66897.0,66892.0,0.0657]
[1722345007300,0.14949,66894.0,66890.0,0.006]
[1722345007499,0.149492,66893.0,66890.0,0.006]
[1722345007710,0.149495,66892.0,66890.0,0.006]
[1722345007912,0.298977,66895.0,66890.0,0.006]
[1722345007913,0.149493,66893.0,66890.0,0.006]
[1722345008409,0.298993,66891.0,66890.0,0.006]
[1722345008575,0.448489,66891.0,66890.0,0.006]
[1722345008772,0.149503,66888.0,66884.0,0.0626]
[1722345009325,0.299001,66890.0,66884.0,0.07124808]
[1722345009523,0.298987,66893.0,66884.0,0.07124808]
[1722345009524,0.149497,66891.0,66884.0,0.07124808]
[1722345009821,0.149495,66892.0,66890.0,0.004]
[1722345010221,0.149497,66891.0,66885.0,0.0792]
[1722345010366,0.149495,66892.0,66891.0,0.00744366]
[1722345010571,0.149497,66891.0,66885.0,0.0792]
[1722345010978,0.149497,66891.0,66886.0,0.00745064]
[1722345011184,0.298978,66895.0,66886.0,0.00745064]
[1722345011387,0.149493,66893.0,66885.0,0.228709]
[1722345011546,0.149489,66895.0,66887.0,0.15695424]
[1722345011745,0.08952299,66897.0,66888.0,0.299004]
[1722345012045,0.01718196,66896.0,66889.0,0.2898]
[1722345012264,0.08952299,66898.0,66894.0,0.1403]
[1722345012435,0.08952299,66902.0,66895.0,0.0619]
[1722345012673,0.08952299,66902.0,66894.0,0.298979]
[1722345012674,0.08952299,66906.0,66899.0,0.0619]
[1722345012885,0.00843,66907.0,66901.0,0.075]
[1722345012886,0.09795299,66907.0,66901.0,0.075]
[1722345013054,0.01226207,66906.0,66901.0,0.075]
[1722345013269,0.00843,66907.0,66902.0,0.30637225]
[1722345013477,0.00843,66907.0,66905.0,0.1916]
[1722345013975,0.00843,66907.0,66906.0,0.00741655]
[1722345014351,0.00843,66907.0,66906.0,0.45580555]
[1722345014558,0.00843,66907.0,66906.0,0.89623155]
[1722345015028,0.00843,66907.0,66906.0,0.59730555]
[1722345015169,0.00843,66907.0,66906.0,0.14891655]
[1722345015591,0.00843,66907.0,66906.0,0.29837955]
[1722345015791,0.00843,66907.0,66906.0,0.14891655]
[1722345016417,0.00843,66907.0,66906.0,0.15691655]
[1722345017856,0.00843,66907.0,66906.0,0.30637955]
[1722345018383,0.00843,66907.0,66906.0,0.15691655]
[1722345019194,0.00843,66907.0,66906.0,0.30637955]
[1722345019399,0.00843,66907.0,66906.0,0.93424155]
[1722345020294,0.00843,66907.0,66906.0,0.92624155]
[1722345020504,0.00843,66907.0,66906.0,0.63531555]
[1722345020949,0.00843,66907.0,66906.0,1.37586187]
[1722345021541,0.00843,66907.0,66906.0,1.22516755]
[1722345022387,0.00843,66907.0,66906.0,1.23816755]
[1722345023776,0.00843,66907.0,66906.0,0.93924155]
[1722345023976,0.00843,66907.0,66906.0,1.23816755]
[1722345024176,0.00843,66907.0,66906.0,1.53709355]
[1722345024387,0.00843,66907.0,66906.0,1.69017038]
[1722345024533,0.00843,66907.0,66906.0,1.06346666]
[1722345025399,0.00843,66907.0,66906.0,1.34939266]
[1722345025792,0.00843,66907.0,66906.0,1.23916755]
[1722345026498,0.00843,66907.0,66906.0,0.94024155]
[1722345026916,0.00843,66907.0,66906.0,1.23916755]
[1722345027410,0.00843,66907.0,66906.0,1.38986187]
[1722345028047,0.00843,66907.0,66906.0,1.48986187]
[1722345030877,0.00843,66907.0,66906.0,1.33916755]
[1722345032527,0.00843,66907.0,66906.0,0.34238955]
[1722345032726,0.00843,66907.0,66906.0,0.19292655]
[1722345032932,0.00843,66907.0,66906.0,0.11152655]
[1722345033258,0.00843,66907.0,66906.0,0.26098955]
[1722345033465,0.00843,66907.0,66906.0,0.55991555]
[1722345033638,0.00843,66907.0,66906.0,0.24698955]
[1722345033892,0.00843,66907.0,66906.0,0.26098955]
[1722345034097,0.00843,66907.0,66906.0,0.55991555]
[1722345034303,0.00843,66907.0,66906.0,0.26098955]
[1722345034440,0.00843,66907.0,66906.0,0.11152655]
[1722345034643,0.00843,66907.0,66906.0,0.26098955]
[1722345035042,0.00843,66907.0,66906.0,0.55991555]
[1722345035248,0.00843,66907.0,66906.0,0.95317487]
[1722345035465,0.00843,66907.0,66906.0,1.33260087]
[1722345035665,0.00843,66907.0,66906.0,1.23826755]
[1722345039846,0.00843,66907.0,66906.0,1.46249238]
[1722345040072,0.00843,66907.0,66906.0,1.33826755]
[1722345040699,0.00843,66907.0,66906.0,1.32426755]
[1722345042324,0.00843,66907.0,66906.0,1.4484989]
[1722345042715,0.00843,66907.0,66906.0,1.4624989]
[1722345043375,0.00843,66907.0,66906.0,1.4709289]
[1722345043901,0.00843,66907.0,66906.0,1.4624989]
[1722345044128,0.00843,66907.0,66906.0,1.33826755]
[1722345044355,0.00843,66907.0,66906.0,1.46249986]
[1722345046045,0.00843,66907.0,66906.0,1.03934155]
[1722345047572,0.00843,66907.0,66906.0,0.19202655]
[1722345047792,0.00843,66907.0,66906.0,0.05142655]
[1722345049185,0.00843,66907.0,66906.0,0.92974155]
[1722345049640,0.00843,66907.0,66906.0,0.93974155]
[1722345049844,0.00843,66907.0,66906.0,0.92974155]
[1722345050224,0.00843,66907.0,66906.0,0.93974155]
[1722345050402,0.00843,66907.0,66906.0,1.05397939]
[1722345050597,0.00843,66907.0,66906.0,1.35290408]
[1722345050855,0.00843,66907.0,66906.0,1.36690408]
[1722345052276,0.00843,66907.0,66906.0,1.35290408]
[1722345053279,0.00843,66907.0,66906.0,1.46690408]
[1722345053486,0.00843,66907.0,66906.0,1.45290408]
[1722345053783,0.00843,66907.0,66906.0,1.46689837]
[1722345057034,0.00843,66907.0,66906.0,1.76582437]
[1722345057175,0.00843,66907.0,66906.0,1.61758918]
[1722345057623,0.00843,66907.0,66906.0,1.9024539]
[1722345057821,0.00843,66907.0,66906.0,1.9124539]
[1722345058133,0.00843,66907.0,66906.0,1.9164539]
[1722345058990,0.00843,66907.0,66906.0,1.6175279]
[1722345059190,0.00843,66907.0,66906.0,1.6035279]
[1722345059604,0.00843,66907.0,66906.0,1.9164539]
[1722345060551,0.00843,66907.0,66906.0,1.91645275]
[1722345061345,0.00843,66907.0,66906.0,2.07714707]
[1722345061558,0.00843,66907.0,66906.0,1.91645275]
[1722345062488,0.00843,66907.0,66906.0,1.61752675]
[1722345062894,0.00843,66907.0,66906.0,1.94845275]
[1722345063641,0.00843,66907.0,66906.0,1.93445275]
[1722345063883,0.00843,66907.0,66906.0,1.92645037]
[1722345064165,0.00843,66907.0,66906.0,1.91245037]
[1722345064355,0.00843,66907.0,66906.0,1.93245037]
[1722345064555,0.00843,66907.0,66906.0,1.94645037]
[1722345065335,0.00843,66907.0,66906.0,2.09714469]
[1722345065535,0.00843,66907.0,66906.0,2.09914469]
[1722345065950,0.00843,66907.0,66906.0,2.39807069]
[1722345066883,0.00843,66907.0,66906.0,1.92645037]
[1722345067066,0.00843,66907.0,66906.0,1.91644659]
[1722345067197,0.00843,66907.0,66906.0,1.92644659]
[1722345070120,0.00843,66907.0,66906.0,1.80222659]
[1722345070327,0.00843,66907.0,66906.0,1.92644642]
[1722345071391,0.00843,66907.0,66906.0,2.06714074]
[1722345072011,0.00843,66907.0,66906.0,1.92644642]
[1722345074391,0.00843,66907.0,66906.0,1.80222659]
[1722345074595,0.00843,66907.0,66906.0,1.92644639]
[1722345075384,0.00843,66907.0,66906.0,0.17564635]
[1722345075594,0.00843,66907.0,66906.0,0.49981555]
[1722345075835,0.00843,66907.0,66906.0,0.79874155]
[1722345076218,0.00843,66907.0,66906.0,0.49981555]
[1722345076503,0.00843,66907.0,66906.0,0.05142655]
[1722345077161,0.00843,66907.0,66906.0,0.20088955]
[1722345077312,0.00843,66907.0,66906.0,0.49981555]
[1722345077515,0.00843,66907.0,66906.0,0.78474155]
[1722345077734,0.00843,66907.0,66906.0,0.03742655]
[1722345077966,0.00843,66907.0,66906.0,0.18688955]
[1722345078138,0.00843,66907.0,66906.0,0.20088955]
[1722345078350,0.29649229,66907.0,66906.0,0.02141655]
[1722345078567,0.61784164,66907.0,66906.0,0.014]
[1722345078733,0.29893,66906.0,66897.0,0.03001]
[1722345079107,0.0489,66902.0,66890.0,0.000913]
[1722345079216,0.23916037,66899.0,66891.0,0.149496]
[1722345079443,0.08968137,66899.0,66893.0,0.07534716]
[1722345079646,0.08968137,66901.0,66894.0,0.19458948]
[1722345079848,0.13857706,66902.0,66894.0,0.19458948]
[1722345080114,0.0489,66902.0,66896.0,0.149485]
[1722345080300,0.0489,66902.0,66897.0,0.149483]
[1722345080537,0.0489,66902.0,66896.0,0.03001]
[1722345080717,0.13857706,66902.0,66895.0,0.03001]
[1722345080911,0.08967706,66901.0,66895.0,0.03001]
[1722345081140,0.149474,66901.0,66895.0,0.03001]
[1722345081351,0.149475,66901.0,66895.0,0.03001]
[1722345081876,0.13857706,66902.0,66895.0,0.03001]
[1722345082131,0.149475,66901.0,66897.0,0.006]
[1722345082375,0.448443,66898.0,66897.0,0.006]
[1722345082499,0.14949,66894.0,66890.0,0.00971448]
[1722345082707,0.149493,66893.0,66890.0,0.00971448]
[1722345082910,0.747482,66891.0,66890.0,0.00971448]
[1722345083123,0.747482,66891.0,66890.0,0.000913]
[1722345083124,1.095375,66891.0,66890.0,0.000913]
[1722345083340,1.20747133,66891.0,66890.0,0.000913]
[1722345083541,1.095375,66891.0,66890.0,0.000913]
[1722345084605,1.095375,66891.0,66890.0,0.006913]
[1722345085178,0.796382,66891.0,66890.0,0.006913]
[1722345087351,0.796382,66891.0,66890.0,0.106913]
[1722345088541,1.095375,66891.0,66890.0,0.106913]
[1722345091834,0.796382,66891.0,66890.0,0.106913]
[1722345092074,0.497389,66891.0,66890.0,0.106913]
[1722345092394,0.298982,66894.0,66890.0,0.106913]
[1722345092512,0.002,66895.0,66890.0,0.1156159]
[1722345092513,0.0489,66895.0,66890.0,0.1156159]
[1722345092713,0.0489,66895.0,66891.0,0.07534716]
[1722345092955,0.448483,66892.0,66891.0,0.0840489]
[1722345093765,0.149494,66892.0,66891.0,0.0840489]
[1722345094496,0.0469,66895.0,66891.0,0.0840489]
[1722345094663,0.0469,66898.0,66892.0,0.149493]
[1722345094862,0.0469,66898.0,66891.0,0.3830399]
[1722345094863,0.196382,66898.0,66891.0,0.0840489]
[1722345095069,0.196382,66898.0,66893.0,0.00870822]
[1722345095070,0.149486,66896.0,66893.0,0.00870822]
[1722345095243,0.149486,66896.0,66892.0,0.00870937]
[1722345095452,0.149486,66896.0,66890.0,0.102913]
[1722345095453,0.149486,66896.0,66894.0,0.00870706]
[1722345095654,0.149486,66896.0,66893.0,0.00870822]
[1722345095894,0.448457,66896.0,66895.0,0.0087059]
[1722345096165,0.149491,66894.0,66890.0,0.100913]
[1722345096495,0.149491,66894.0,66892.0,0.001]
[1722345096716,0.298976,66895.0,66892.0,0.001]
[1722345096952,0.298971,66896.0,66890.0,0.100913]
[1722345097155,0.149495,66892.0,66890.0,0.100913]
[1722345097807,0.298976,66895.0,66890.0,0.100913]
[1722345097808,0.149488,66895.0,66890.0,0.100913]
[1722345098049,0.0469,66898.0,66890.0,0.100913]
[1722345098050,0.298967,66897.0,66890.0,0.100913]
[1722345098251,0.149489,66895.0,66890.0,0.100913]
[1722345098847,0.14949,66894.0,66890.0,0.105913]
[1722345099134,0.14949,66894.0,66890.0,0.100913]
[1722345099494,0.14949,66894.0,66890.0,0.102913]
[1722345099694,0.149488,66895.0,66890.0,0.102913]
[1722345100054,0.149488,66895.0,66890.0,0.105913]
[1722345100301,0.149488,66895.0,66891.0,0.00871053]
[1722345100627,0.14949,66894.0,66891.0,0.00871053]
[1722345100822,0.0469,66898.0,66891.0,0.00871053]
[1722345101018,0.149483,66897.0,66891.0,0.00871053]
[1722345101219,0.196383,66898.0,66891.0,0.00871053]
[1722345101417,0.149485,66897.0,66891.0,0.00871053]
[1722345101638,0.298955,66900.0,66892.0,0.289193]
[1722345101639,0.149478,66900.0,66892.0,0.289193]
[1722345101928,0.149476,66900.0,66893.0,0.15820022]
[1722345102114,0.149476,66900.0,66893.0,0.00870822]
[1722345102307,0.149476,66900.0,66893.0,0.15820022]
[1722345102640,0.298944,66902.0,66893.0,0.15819922]
[1722345102858,0.149476,66901.0,66893.0,0.15819922]
[1722345103110,0.298944,66902.0,66893.0,0.15819922]
[1722345103111,0.149476,66900.0,66893.0,0.15819922]
[1722345103316,0.298944,66902.0,66894.0,0.14949]
[1722345103317,0.149475,66901.0,66894.0,0.14949]
[1722345103525,0.149477,66900.0,66893.0,0.00870822]
[1722345103736,0.149477,66900.0,66892.0,0.1397]
[1722345103737,0.298954,66900.0,66894.0,0.00870706]
[1722345103941,0.298954,66900.0,66892.0,0.061]
[1722345103942,0.149479,66899.0,66892.0,0.149493]
[1722345104082,0.149479,66899.0,66895.0,0.0087059]
[1722345104285,0.149479,66899.0,66892.0,0.149493]
[1722345104486,0.149479,66899.0,66893.0,0.00870822]
[1722345105280,0.00083,66900.0,66894.0,0.149489]
[1722345105485,0.00083,66900.0,66896.0,0.149484]
[1722345105718,0.00083,66900.0,66897.0,0.00870091]
[1722345106127,0.00083,66900.0,66898.0,0.00826471]
[1722345106324,0.00083,66900.0,66896.0,0.149485]
[1722345106551,0.00083,66900.0,66899.0,0.00826355]
[1722345106754,0.00083,66900.0,66894.0,0.149489]
[1722345106987,0.00083,66900.0,66899.0,0.00826355]
[1722345107130,0.00083,66900.0,66893.0,0.290891]
[1722345107512,0.00083,66900.0,66899.0,0.00826355]
[1722345107629,0.00083,66900.0,66893.0,0.1414]
[1722345107630,0.00083,66900.0,66893.0,0.290891]
[1722345107987,0.150306,66900.0,66893.0,0.290891]
[1722345108193,0.150306,66900.0,66894.0,0.00826934]
[1722345108405,0.149479,66899.0,66894.0,0.00826934]
[1722345108582,0.149482,66898.0,66894.0,0.00826934]
[1722345108785,0.44926,66900.0,66894.0,0.00826934]
[1722345108987,0.150307,66900.0,66894.0,0.00826934]
[1722345110284,0.01312526,66899.0,66894.0,0.00826934]
[1722345110487,0.150307,66900.0,66894.0,0.00826934]
[1722345112326,0.01329882,66899.0,66894.0,0.00826934]
[1722345112960,0.150307,66900.0,66894.0,0.00826934]
[1722345113219,0.01329791,66899.0,66894.0,0.00826934]
[1722345113984,0.150307,66900.0,66894.0,0.00826934]
[1722345114171,0.01334652,66899.0,66894.0,0.00826934]
[1722345114376,0.01334652,66899.0,66894.0,0.15775734]
[1722345114775,0.01334652,66899.0,66895.0,0.298975]
[1722345114977,0.01334652,66899.0,66897.0,0.0811]
[1722345115180,0.01334652,66899.0,66898.0,0.0766]
[1722345115389,0.00083,66900.0,66898.0,0.08485532]
[1722345115811,0.00083,66900.0,66899.0,0.215079]
[1722345116017,0.00083,66900.0,66899.0,0.90254916]
[1722345116221,0.00083,66900.0,66899.0,1.20150716]
[1722345116417,0.00083,66900.0,66899.0,0.90254916]
[1722345117188,0.00083,66900.0,66899.0,1.09404916]
[1722345118562,0.00083,66900.0,66899.0,1.10304916]
[1722345118738,0.00083,66900.0,66899.0,1.09404916]
[1722345119196,0.00083,66900.0,66899.0,1.10404916]
[1722345119497,0.00083,66900.0,66899.0,1.55370148]
[1722345119718,0.00083,66900.0,66899.0,1.58371148]
[1722345119900,0.00083,66900.0,66899.0,1.43301716]
[1722345120415,0.00083,66900.0,66899.0,1.42301716]
[1722345120617,0.00083,66900.0,66899.0,1.12405916]
[1722345122565,0.00083,66900.0,66899.0,1.13805916]
[1722345122919,0.00083,66900.0,66899.0,1.12405916]
[1722345123098,0.00083,66900.0,66899.0,1.13805916]
[1722345124960,0.00083,66900.0,66899.0,0.94655916]
[1722345128524,0.00083,66900.0,66899.0,0.64760116]
[1722345128929,0.00083,66900.0,66899.0,0.94655916]
[1722345130538,0.00083,66900.0,66899.0,0.64760116]
[1722345132083,0.00083,66900.0,66899.0,0.94655916]
[1722345132641,0.00083,66900.0,66899.0,0.64760116]
[1722345132821,0.00083,66900.0,66899.0,0.92310153]
[1722345133405,0.00083,66900.0,66899.0,0.62414353]
[1722345133604,0.00083,66900.0,66899.0,0.92310153]
[1722345133965,0.00083,66900.0,66899.0,0.62414353]
[1722345134743,0.00083,66900.0,66899.0,0.92310153]
[1722345136002,0.00083,66900.0,66899.0,0.62414353]
[1722345136425,0.00083,66900.0,66899.0,0.19916416]
[1722345136631,0.00083,66900.0,66899.0,0.02225416]
[1722345136632,0.449259,66900.0,66899.0,0.02225416]
[1722345136824,0.748212,66900.0,66899.0,0.014]
[1722345137248,1.13675454,66900.0,66899.0,0.014]
[1722345137470,0.76143151,66900.0,66899.0,0.014]
[1722345137665,1.22127143,66900.0,66899.0,0.014]
[1722345137866,1.10928451,66900.0,66899.0,0.014]
[1722345138715,0.149492,66894.0,66891.0,0.0766]
[1722345139041,0.23912547,66895.0,66894.0,0.0766]
[1722345139197,0.448464,66895.0,66894.0,0.0766]
[1722345139400,0.53810466,66895.0,66894.0,0.0766]
[1722345139616,0.448464,66895.0,66894.0,0.0766]
[1722345140650,0.83708066,66895.0,66894.0,0.0766]
[1722345140853,0.450489,66891.0,66890.0,0.10987908]
[1722345141054,1.20742582,66891.0,66890.0,0.100913]
[1722345141258,1.10876634,66891.0,66890.0,0.100913]
[1722345142620,1.10893095,66891.0,66890.0,0.100913]
[1722345143749,1.10893095,66891.0,66890.0,0.109913]
[1722345143952,1.10893095,66891.0,66890.0,0.100913]
[1722345144252,1.24333624,66891.0,66890.0,0.100913]
[1722345144886,1.24333624,66891.0,66890.0,0.106913]
[1722345145090,1.10893095,66891.0,66890.0,0.08344909]
[1722345145543,1.40792395,66891.0,66890.0,0.08344909]
[1722345145758,1.50792395,66891.0,66890.0,0.08344909]
[1722345145966,1.50822421,66891.0,66890.0,0.08344909]
[1722345147151,1.6425396,66891.0,66890.0,0.08344909]
[1722345148654,1.50822421,66891.0,66890.0,0.08344909]
[1722345149289,1.50869534,66891.0,66890.0,0.08344909]
[1722345152540,1.52336724,66891.0,66890.0,0.08344909]
[1722345155900,1.52348553,66891.0,66890.0,0.08344909]
[1722345156491,1.52348553,66891.0,66890.0,0.05998353]
[1722345156492,1.63523915,66891.0,66890.0,0.05998353]
[1722345156692,1.63518144,66891.0,66890.0,0.05998353]
[1722345158649,1.62085193,66891.0,66890.0,0.05998353]
[1722345159343,1.50919903,66891.0,66890.0,0.05998353]
[1722345160646,1.63091078,66891.0,66890.0,0.05998353]
[1722345160779,1.51919903,66891.0,66890.0,0.05998353]
[1722345160985,1.51919903,66891.0,66877.0,0.000913]
[1722345160986,1.355734,66878.0,66877.0,0.000913]
[1722345161171,1.85023896,66878.0,66877.0,0.000913]
[1722345161378,1.83851703,66878.0,66877.0,0.000913]
[1722345161576,1.86151703,66878.0,66877.0,0.000913]
[1722345161797,1.99558335,66878.0,66877.0,0.000913]
[1722345162234,2.04682111,66878.0,66877.0,0.000913]
[1722345162466,1.88860348,66878.0,66877.0,0.000913]
[1722345162648,1.90479545,66878.0,66877.0,0.001913]
[1722345162841,1.90379545,66878.0,66877.0,0.000913]
[1722345163225,1.95005617,66878.0,66877.0,0.000913]
[1722345164118,1.87088498,66878.0,66877.0,0.000913]
[1722345164322,2.22128614,66878.0,66877.0,0.000913]
[1722345164470,2.22828614,66878.0,66877.0,0.001913]
[1722345165576,0.149581,66853.0,66852.0,0.000913]
[1722345165812,0.76328263,66853.0,66852.0,0.000913]
[1722345166081,0.76328263,66853.0,66852.0,0.0088865]
[1722345166262,0.149581,66853.0,66852.0,0.144013]
[1722345166639,0.149581,66853.0,66852.0,0.15349307]
[1722345166823,0.1,66860.0,66852.0,0.15349307]
[1722345167024,0.1,66862.0,66853.0,0.0644]
[1722345167393,0.149575,66856.0,66855.0,0.0644]
[1722345167855,0.1,66862.0,66855.0,0.0644]
[1722345168093,0.1,66862.0,66855.0,0.0738842]
[1722345168094,0.299143,66858.0,66855.0,0.0738842]
[1722345168357,0.408124,66862.0,66855.0,0.0738842]
[1722345168640,0.149575,66856.0,66855.0,0.0504081]
[1722345168878,0.109,66862.0,66856.0,0.0787]
[1722345169126,0.149572,66857.0,66856.0,0.0787]
[1722345171472,0.299128,66861.0,66857.0,0.0639]
[1722345171686,0.299134,66860.0,66857.0,0.0639]
[1722345171895,0.14957,66858.0,66857.0,0.0639]
[1722345172924,0.149567,66860.0,66857.0,0.0639]
[1722345173171,0.299103,66867.0,66859.0,0.0644]
[1722345173396,0.1,66871.0,66859.0,0.0644]
[1722345173397,0.149562,66862.0,66859.0,0.0644]
[1722345173918,0.149562,66862.0,66861.0,0.0645]
[1722345174385,0.448685,66862.0,66861.0,0.0645]
[1722345176241,0.450685,66862.0,66861.0,0.0645]
[1722345177542,0.4502392,66862.0,66861.0,0.0645]
[1722345177766,0.4532392,66862.0,66861.0,0.0645]
[1722345177971,0.451685,66862.0,66861.0,0.0645]
[1722345178370,0.750808,66862.0,66861.0,0.0645]
[1722345178573,0.451685,66862.0,66861.0,0.0645]
[1722345179000,0.750808,66862.0,66861.0,0.0645]
[1722345181371,0.003,66862.0,66861.0,0.0645]
[1722345181540,0.152561,66862.0,66861.0,0.1466]
[1722345182379,0.003,66862.0,66861.0,0.296164]
[1722345182593,0.003,66862.0,66861.0,0.92442]
[1722345182799,0.003,66862.0,66861.0,1.23304014]
[1722345183804,0.003,66862.0,66861.0,0.93391214]
[1722345184022,0.00084,66869.0,66865.0,0.149553]
[1722345184023,0.0015542,66868.0,66865.0,0.149553]
[1722345184225,0.0015542,66868.0,66864.0,0.299112]
[1722345184430,0.00084,66869.0,66868.0,0.299096]
[1722345184636,0.00084,66869.0,66868.0,0.596244]
[1722345184856,0.00084,66869.0,66868.0,0.60571129]
[1722345185260,0.00084,66869.0,66868.0,0.15706729]
[1722345185642,0.449478,66869.0,66868.0,0.15706729]
[1722345186074,0.449478,66869.0,66868.0,0.1476]
[1722345186812,0.449478,66869.0,66863.0,0.0636]
[1722345186813,0.448671,66864.0,66863.0,0.0636]
[1722345187013,0.747785,66864.0,66863.0,0.0636]
[1722345188018,0.76432103,66864.0,66863.0,0.007]